[Event "44th Chess Olympiad Women 2022"]
[Site "Chennai"]
[Date "2022.08.02"]
[Round "5.31"]
[White "Ahmad Murad, Fatema Alzahraa."]
[Black "Hng, Mei-En Emmanuelle"]
[Result "0-1"]
[ECO "A70"]
[WhiteElo "1791"]
[BlackElo "1997"]
[Annotator "NA RC"]
[PlyCount "82"]
[EventDate "2022.07.29"]
[EventType "team-tourn"]
[EventCountry "IND"]
[SourceTitle "playchess.com"]
[Source "ChessBase"]
[SourceQuality "1"]
[WhiteTeam "Syria"]
[BlackTeam "SGP"]
[WhiteTeamCountry "SYR"]
[TimeControl "40/5400+30:1800+30"]

1. d4 {[%emt 0:00:08]} Nf6 {[%emt 0:00:30]} 2. Nf3 {[%emt 0:01:26]} e6 {[%emt 0:00:53]} 3. c4 {[%emt 0:00:29]} c5 {[%emt 0:01:07]} 4. d5 {[%emt 0:00:21]} exd5 {[%emt 0:01:00]} 5. cxd5 {[%emt 0:00:11]} d6 {[%emt 0:00:12]} 6. Nc3 {[%emt 0:00:44]} g6 {[%emt 0:01:35]} 7. e4 {[%emt 0:04:01]} Bg7 {[%emt 0:00:30]} 8. h3 {[%emt 0:02:19]} O-O {[%emt 0:01:05]} 9. Bd3 {[%emt 0:01:41]} Re8 {[%emt 0:07:34]} 10. O-O {[%emt 0:00:45]} a6 {[%emt 0:05:24]} 11. a4 {[%emt 0:03:12]} Nbd7 {[%emt 0:01:48]} 12. Re1 {[%emt 0:03:48]} Qc7 {[%emt 0:02:27]} 13. Qc2 {[%emt 0:08:11]} b6 {[%emt 0:07:12]} 14. Bf4 {[%emt 0:03:41]} Bb7 {[%emt 0:11:22]} 15. Rac1 {[%emt 0:08:15]} Nh5 {[%emt 0:06:28]} 16. Bh2 {[%emt 0:04:49]} c4 {[%emt 0:03:05]} 17. Nb1 {[%emt 0:05:43]} b5 {[%emt 0:03:02]} 18. axb5 {[%emt 0:01:12]} axb5 {[%emt 0:00:10]} 19. b3 {[%emt 0:00:43]} Nc5 {[%emt 0:11:10]} 20. bxc4 {[%emt 0:04:13]} b4 {[%emt 0:00:08]} 21. g4 {[%emt 0:00:34]} b3 {[%emt 0:07:17]} 22. Qe2 {[%emt 0:05:25]} f5 {[%emt 0:06:22]} 23. e5 {[%emt 0:02:34]} fxg4 {[%emt 0:01:13]} 24. hxg4 {[%emt 0:00:50]} Nf6 {[%emt 0:01:06]} 25. Nc3 {[%emt 0:06:29]} Nxg4 {[%emt 0:05:40]} 26. Nb5 {[%emt 0:00:41]} Qb6 {[%emt 0:00:09]} 27. Nxd6 {[%emt 0:03:02]} Nxd3 {[%emt 0:00:25]} 28. Qxd3 {[%emt 0:15:37]} Qxf2+ {[%emt 0:01:15]} 29. Kh1 {[%emt 0:00:04]} Nxh2 {[%emt 0:01:52]} 30. Nxh2 {[%emt 0:02:13]} Ra2 {[%emt 0:05:18]} 31. Qh3 {[%emt 0:01:09]} Rxe5 {[%emt 0:01:45]} 32. Rxe5 {[%emt 0:00:57]} Qxh2+ {[%emt 0:01:10]} 33. Qxh2 {[%emt 0:00:25]} Rxh2+ {[%emt 0:00:01]} 34. Kxh2 {[%emt 0:01:51]} Bxe5+ {[%emt 0:00:01]} 35. Kh3 {[%emt 0:00:47]} Bxd6 {[%emt 0:00:24]} 36. c5 {[%emt 0:02:01]} b2 {[%emt 0:00:34]} 37. Rb1 {[%emt 0:01:05]} Bxc5 {[%emt 0:00:13]} 38. Rxb2 {[%emt 0:00:09]} Bxd5 {[%emt 0:00:23]} 39. Rb5 {[%emt 0:01:04]} Be6+ {[%emt 0:00:07]} 40. Kg3 {[%emt 0:00:08]} Bd6+ {[%emt 0:00:22]} 41. Kf3 {[%emt 0:31:10]} Kf7 {[%emt 0:34:29]} 0-1

[Event "44th Chess Olympiad Women 2022"]
[Site "Chennai"]
[Date "2022.08.02"]
[Round "5.32"]
[White "Gomez Barrera, Javiera Belen"]
[Black "Mwango, Lorita"]
[Result "1-0"]
[ECO "B12"]
[WhiteElo "2210"]
[BlackElo "1920"]
[Annotator "NA RC"]
[PlyCount "57"]
[EventDate "2022.07.29"]
[EventType "team-tourn"]
[EventCountry "IND"]
[SourceTitle "playchess.com"]
[Source "ChessBase"]
[SourceQuality "1"]
[WhiteTeam "Chile"]
[BlackTeam "Zambia"]
[WhiteTeamCountry "CHI"]
[BlackTeamCountry "ZAM"]
[TimeControl "40/5400+30:1800+30"]

1. e4 {[%emt 0:00:04]} c6 {[%emt 0:00:09]} 2. d4 {[%emt 0:00:08]} d5 {[%emt 0:00:05]} 3. e5 {[%emt 0:00:09]} Bf5 {[%emt 0:00:26]} 4. Nc3 {[%emt 0:00:40]} e6 {[%emt 0:00:24]} 5. g4 {[%emt 0:00:36]} Bg6 {[%emt 0:00:43]} 6. Nge2 {[%emt 0:00:26]} h6 {[%emt 0:01:30]} 7. h4 {[%emt 0:01:02]} c5 {[%emt 0:01:15]} 8. f4 {[%emt 0:03:08]} h5 {[%emt 0:01:54]} 9. f5 {[%emt 0:02:29]} exf5 {[%emt 0:06:20]} 10. Nf4 {[%emt 0:17:47]} fxg4 {[%emt 0:01:40]} 11. Nxg6 {[%emt 0:04:49]} fxg6 {[%emt 0:00:33]} 12. Bg5 {[%emt 0:19:12]} Ne7 {[%emt 0:08:50]} 13. Nb5 {[%emt 0:13:33]} Qa5+ {[%emt 0:05:48]} 14. c3 {[%emt 0:05:57]} Qb6 {[%emt 0:06:24]} 15. dxc5 {[%emt 0:07:12]} Qxc5 {[%emt 0:08:30]} 16. Qb3 {[%emt 0:11:11]} Kd7 {[%emt 0:07:38]} 17. O-O-O {[%emt 0:02:33]} Nbc6 {[%emt 0:00:50]} 18. Bg2 {[%emt 0:01:21]} a6 {[%emt 0:04:06]} 19. Nd6 {[%emt 0:01:50]} b5 {[%emt 0:07:47]} 20. Bxd5 {[%emt 0:02:47]} Kc7 {[%emt 0:01:59]} 21. Bg2 {[%emt 0:02:03]} Rd8 {[%emt 0:05:00]} 22. Nf7 {[%emt 0:01:17]} Rxd1+ {[%emt 0:00:39]} 23. Rxd1 {[%emt 0:00:01]} Rh7 {[%emt 0:00:48]} 24. Qe6 {[%emt 0:00:51]} Nb8 {[%emt 0:02:18]} 25. Qd6+ {[%emt 0:00:29]} Qxd6 {[%emt 0:02:11]} 26. exd6+ {[%emt 0:00:02]} Kc8 {[%emt 0:00:46]} 27. dxe7 {[%emt 0:00:24]} Bxe7 {[%emt 0:01:42]} 28. Bxe7 {[%emt 0:00:02]} Nd7 {[%emt 0:01:42]} 29. Be4 {[%emt 0:00:29]} 1-0

[Event "44th Chess Olympiad Women 2022"]
[Site "Chennai"]
[Date "2022.08.02"]
[Round "5.32"]
[White "Toro Pradenas, Maria Jose"]
[Black "Mbatha, Constance"]
[Result "1-0"]
[ECO "C66"]
[WhiteElo "1945"]
[BlackElo "1614"]
[Annotator "TA"]
[PlyCount "127"]
[EventDate "2022.07.29"]
[EventType "team-tourn"]
[EventCountry "IND"]
[SourceTitle "playchess.com"]
[Source "ChessBase"]
[SourceQuality "1"]
[WhiteTeam "Chile"]
[BlackTeam "Zambia"]
[WhiteTeamCountry "CHI"]
[BlackTeamCountry "ZAM"]
[TimeControl "40/5400+30:1800+30"]

{[%evp 14,127,68,58,70,53,68,83,75,75,99,83,105,35,51,44,79,70,80,50,68,38,87,53,98,72,76,54,62,54,78,69,245,246,230,229,230,238,222,169,237,191,210,212,256,239,245,217,254,255,260,251,258,224,320,322,352,370,350,320,328,0,268,261,349,339,328,321,302,258,261,266,285,305,305,287,271,303,381,315,384,365,490,491,479,466,497,437,882,883,910,908,942,975,884,721,766,657,655,642,618,523,1277,1171,29991,29992,29992,29993,29993,29994,29994,29992,29993,29993,29993,29994]} 1. e4 {[%emt 0:00:02]} e5 {[%emt 0:00:16]} 2. Nf3 {[%emt 0:00:05]} Nc6 {[%emt 0:00:08]} 3. Bb5 {[%emt 0:00:08]} Nf6 {[%emt 0:00:31]} 4. O-O {[%emt 0:00:16]} Be7 {[%emt 0:00:28]} 5. Re1 {[%emt 0:00:42]} d6 {[%emt 0:01:06]} 6. c3 {[%emt 0:03:20]} Bd7 {[%emt 0:00:45]} 7. d4 {[%emt 0:00:28]} exd4 {[%emt 0:00:59]} 8. cxd4 {[%emt 0:00:10]} a6 {[%emt 0:00:28] C66: Ruy Lopez: Steinitz Defence.} 9. Bd3 {[%emt 0:11:57]} O-O {[%emt 0:00:40]} 10. Nc3 {[%emt 0:00:50]} Bg4 {[%emt 0:03:21] White is better.} 11. Be3 {[%emt 0:09:52]} Re8 {[%emt 0:02:21]} 12. h3 {[%emt 0:05:22]} Bh5 {[%emt 0:02:34] [#]} 13. d5 $146 {[%emt 0:12:32]} (13. Rc1 $16) ({Predecessor:} 13. Rc1 Qd7 14. Bb1 Rad8 15. a3 h6 16. Qe2 Nh7 17. Nd5 Bg5 18. Rcd1 Bxe3 19. Qxe3 {½-½ (78) Mir Wais,M (1530)-Strathoff,J (1319) Muelheim 2002}) 13... Ne5 {[%emt 0:04:09]} 14. Be2 {[%emt 0:02:28]} Qc8 {[%emt 0:03:12]} 15. Nd4 {[%emt 0:04:44]} Bxe2 {[%emt 0:06:33]} 16. Qxe2 {[%emt 0:00:16]} Bf8 {[%emt 0:00:37]} 17. Rac1 {[%emt 0:06:28]} Ng6 {[%emt 0:01:26]} (17... c5 $14 {was preferrable.}) 18. f3 {[%emt 0:05:28]} h6 {[%emt 0:03:13]} 19. Na4 {[%emt 0:08:08] Threatens to win with Nb6.} Qd7 {[%emt 0:03:41]} 20. Qc2 {[%emt 0:00:28]} Rac8 {[%emt 0:01:10]} 21. Qb3 {[%emt 0:02:10]} Rb8 {[%emt 0:08:39]} 22. Rc2 {[%emt 0:02:56] 0x0.0023641e5acbdp-1022s more active pieces.} c5 $2 {[%emt 0:13:37] [#]} (22... Nh5 $14) 23. dxc6 $1 $18 {[%emt 0:01:36]} bxc6 {[%emt 0:02:33]} 24. Nb6 {[%emt 0:03:56]} Rxb6 {[%emt 0:10:23]} 25. Qxb6 {[%emt 0:00:16]} c5 {[%emt 0:00:40]} 26. Nb3 {[%emt 0:05:11]} ({And not} 26. Qxa6 cxd4 27. Bxd4 Nd5 $11) 26... Re6 {[%emt 0:07:09]} (26... Ne5 $142 27. Qxa6 c4) 27. Qa5 {[%emt 0:04:18]} Ne5 {[%emt 0:05:13]} 28. Rd1 {[%emt 0:00:54]} Qc8 {[%emt 0:00:34]} 29. Bf4 {[%emt 0:05:15]} Nc6 {[%emt 0:02:17]} 30. Qc3 {[%emt 0:00:18]} Qa8 {[%emt 0:03:53]} 31. Rcd2 {[%emt 0:00:36][%cal Rf4d6]} Ne8 {[%emt 0:01:28]} 32. Na5 {[%emt 0:00:54]} Nd4 {[%emt 0:01:31]} 33. Be3 {[%emt 0:00:26]} Nb5 {[%emt 0:00:28]} (33... d5 $142 34. Bxd4 cxd4 35. Rxd4 (35. Qxd4 dxe4 36. fxe4 Rxe4 $18) 35... dxe4 36. Rxe4 Rxe4) 34. Qb3 {[%emt 0:00:53]} Rg6 {[%emt 0:00:57]} 35. a4 {[%emt 0:00:35]} Nbc7 {[%emt 0:00:06]} 36. Bf2 {[%emt 0:02:47]} Ne6 {[%emt 0:00:40]} 37. Be3 $2 {[%emt 0:00:28] Prevents Nf4.} ({White should play} 37. Qb7 $18 Qxb7 38. Nxb7) 37... Qd8 {[%emt 0:01:02][%mdl 8192]} (37... N6c7 $1 $11 {and Black has nothing to worry.} 38. Nc4 Qc8) 38. Nc4 {[%emt 0:00:50][%cal Ba5c4,Bc4b6,Bb6d5][%mdl 32]} Ng5 {[%emt 0:01:38]} 39. Bxg5 {[%emt 0:00:20]} Qxg5 {[%emt 0:00:02]} 40. Qe3 {[%emt 0:00:29]} Qh4 {[%emt 0:02:16]} 41. Kf1 {[%emt 0:04:16]} Re6 {[%emt 0:02:36]} 42. Qf2 {[%emt 0:06:05]} Qf6 {[%emt 0:03:34]} 43. Nb6 {[%emt 0:03:10]} Qe7 {[%emt 0:05:35]} 44. Qe2 {[%emt 0:02:58]} Qb7 {[%emt 0:02:08]} 45. Nd5 {[%emt 0:00:58]} Kh8 {[%emt 0:00:38]} 46. Re1 {[%emt 0:03:13]} Qc6 {[%emt 0:02:17]} 47. Qc4 {[%emt 0:00:27]} Qb7 {[%emt 0:02:05]} 48. b4 {[%emt 0:01:18]} cxb4 {[%emt 0:04:54]} 49. Qxb4 {[%emt 0:00:10]} Qc6 {[%emt 0:01:03]} 50. Rd3 {[%emt 0:00:44][%cal Bd2d3,Bd3c3,Bc3c8][%mdl 32]} Rg6 {[%emt 0:01:43]} (50... Kh7 $142 51. Rc3 Qd7) 51. Rc3 {[%emt 0:00:47]} Qd7 {[%emt 0:00:17]} 52. Qc4 {[%emt 0:00:54]} Kh7 {[%emt 0:05:44]} 53. Qxa6 {[%emt 0:00:49]} Nf6 {[%emt 0:01:29]} 54. Nxf6+ {[%emt 0:00:49]} gxf6 {[%emt 0:01:36]} 55. Rc8 {[%emt 0:02:18]} Bg7 {[%emt 0:00:52]} 56. Qc6 {[%emt 0:00:19]} Qa7 {[%emt 0:01:13]} 57. Qe8 {[%emt 0:01:30][%csl Gc8][%cal Re8g8] [#]} Rg5 {[%emt 0:00:44]} 58. f4 {[%emt 0:04:20][%cal Bf3f4,Bf4f5][%mdl 32]} Rc5 {[%emt 0:02:24]} 59. Qg8+ {[%emt 0:00:49] White mates.} Kg6 {[%emt 0:01:25]} 60. f5+ {[%emt 0:00:15]} Kg5 {[%emt 0:03:09]} 61. Qxg7+ {[%emt 0:00:16]} Kf4 {[%emt 0:00:24]} 62. Qg4+ {[%emt 0:00:31]} Ke5 {[%emt 0:00:32]} 63. Qg3+ {[%emt 0:00:09]} Kd4 {[%emt 0:00:19]} 64. Qxd6+ {[%emt 0:00:05] Weighted Error Value: White=0.25 (precise) /Black=0.51} 1-0

[Event "44th Chess Olympiad Women 2022"]
[Site "Chennai"]
[Date "2022.08.02"]
[Round "5.32"]
[White "Bwalya Mulwale, Lubuuto"]
[Black "Reyes Jara, Paula"]
[Result "0-1"]
[ECO "E92"]
[WhiteElo "1751"]
[BlackElo "1858"]
[Annotator "NA RC COMBH"]
[PlyCount "86"]
[EventDate "2022.07.29"]
[EventType "team-tourn"]
[EventCountry "IND"]
[SourceTitle "playchess.com"]
[Source "ChessBase"]
[SourceQuality "1"]
[WhiteTeam "Zambia"]
[BlackTeam "Chile"]
[WhiteTeamCountry "ZAM"]
[BlackTeamCountry "CHI"]
[TimeControl "40/5400+30:1800+30"]

1. d4 {[%emt 1:44:29]} Nf6 {[%emt 0:02:03]} 2. c4 {[%emt 0:00:08]} g6 {[%emt 0:00:13]} 3. Nc3 {[%emt 0:00:06]} Bg7 {[%emt 0:00:11]} 4. e4 {[%emt 0:00:10]} d6 {[%emt 0:00:42]} 5. Nf3 {[%emt 0:00:15]} O-O {[%emt 0:00:41]} 6. Be2 {[%emt 0:00:15]} e5 {[%emt 0:01:37]} 7. dxe5 {[%emt 0:00:51]} dxe5 {[%emt 0:00:56]} 8. Qd4 {[%emt 0:00:35]} Qd7 9. Qxd7 Re8 {[%emt 0:01:18]} 10. Qd8 Rxd8 11. Bg5 {[%emt 0:01:36]} Re8 {[%emt 0:11:17]} 12. h3 {[%emt 0:02:28]} c6 {[%emt 0:02:41]} 13. O-O {[%emt 0:01:45]} Na6 {[%emt 0:01:42]} 14. Rfd1 {[%emt 0:11:16]} Nc5 {[%emt 0:06:32]} 15. Bxf6 {[%emt 0:08:57]} Bxf6 {[%emt 0:00:38]} 16. b4 {[%emt 0:01:30]} Ne6 {[%emt 0:00:43]} 17. b5 {[%emt 0:05:57]} Nd4 {[%emt 0:02:43]} 18. Bf1 {[%emt 0:03:44]} Bxh3 {[%emt 0:03:17]} 19. Nxd4 {[%emt 0:09:55]} exd4 {[%emt 0:00:13]} 20. Na4 {[%emt 0:00:33]} cxb5 {[%emt 0:05:25]} 21. cxb5 {[%emt 0:00:51]} Be6 {[%emt 0:00:09]} 22. Bd3 {[%emt 0:02:21]} b6 {[%emt 0:06:22]} 23. Rd2 {[%emt 0:03:10]} Bg5 {[%emt 0:06:17]} 24. Re2 {[%emt 0:04:37]} Rac8 {[%emt 0:01:57]} 25. Nb2 {[%emt 0:04:21]} Rc7 {[%emt 0:00:46]} 26. a4 {[%emt 0:01:48]} Rec8 {[%emt 0:00:31]} 27. Ree1 {[%emt 0:02:02]} Bd2 {[%emt 0:03:21]} 28. Re2 {[%emt 0:02:22]} Bc3 {[%emt 0:00:06]} 29. f3 {[%emt 0:04:06]} h5 {[%emt 0:07:01]} 30. Kf2 {[%emt 0:01:30]} Kf8 {[%emt 0:03:27]} 31. Rb1 {[%emt 0:03:27]} Bb3 {[%emt 0:05:44]} 32. Ra1 {[%emt 0:04:20]} Ke7 {[%emt 0:01:21]} 33. f4 {[%emt 0:01:29]} Bb4 {[%emt 0:07:49]} 34. f5 {[%emt 0:10:42]} Rc1 {[%emt 0:01:15]} 35. Rxc1 {[%emt 0:00:40]} Rxc1 {[%emt 0:00:03]} 36. fxg6 {[%emt 0:01:24]} fxg6 {[%emt 0:00:15]} 37. e5 {[%emt 0:01:10]} g5 {[%emt 0:03:46]} 38. Bg6 {[%emt 0:01:49]} Rh1 {[%emt 0:00:17]} 39. Bc2 {[%emt 0:03:35]} Be6 {[%emt 0:01:33]} 40. Be4 {[%emt 0:01:07]} Bc3 {[%emt 0:00:52]} 41. Rc2 {[%emt 0:01:01]} Ra1 {[%emt 0:00:33]} 42. Bg6 {[%emt 0:00:17]} h4 {[%emt 0:00:35]} 43. Ke2 {[%emt 0:00:19]} Bb3 {[%emt 0:00:41]} 0-1

[Event "44th Chess Olympiad Women 2022"]
[Site "Chennai"]
[Date "2022.08.02"]
[Round "5.32"]
[White "Phiri Bertha"]
[Black "Sanchez Tobar, Francisca Valenti"]
[Result "0-1"]
[ECO "C77"]
[WhiteElo "1606"]
[BlackElo "1839"]
[Annotator "NA RC COMBH"]
[PlyCount "116"]
[EventDate "2022.07.29"]
[EventType "team-tourn"]
[EventCountry "IND"]
[SourceTitle "playchess.com"]
[Source "ChessBase"]
[SourceQuality "1"]
[WhiteTeam "Zambia"]
[BlackTeam "Chile"]
[WhiteTeamCountry "ZAM"]
[BlackTeamCountry "CHI"]
[TimeControl "40/5400+30:1800+30"]

1. e4 {[%emt 0:00:15]} e5 {[%emt 0:00:09]} 2. Nc3 {[%emt 0:00:37]} Nf6 {[%emt 0:00:24]} 3. Nf3 {[%emt 0:00:51]} Nc6 {[%emt 0:00:14]} 4. Bb5 {[%emt 0:01:23]} a6 {[%emt 0:03:06]} 5. Ba4 {[%emt 0:00:21]} Bc5 {[%emt 0:01:05]} 6. d3 {[%emt 0:01:43]} h6 {[%emt 0:01:49]} 7. h3 {[%emt 0:01:02]} d6 {[%emt 0:02:32]} 8. a3 {[%emt 0:03:49]} b5 {[%emt 0:03:20]} 9. Bb3 {[%emt 0:00:06]} Be6 {[%emt 0:00:19]} 10. Ba2 {[%emt 0:07:03]} O-O {[%emt 0:02:28]} 11. O-O {[%emt 0:00:22]} Qd7 {[%emt 0:02:41]} 12. Kh2 {[%emt 0:04:16]} d5 {[%emt 0:02:37]} 13. exd5 {[%emt 0:02:42]} Nxd5 {[%emt 0:00:15]} 14. Nxd5 {[%emt 0:01:23]} Bxd5 {[%emt 0:00:08]} 15. Bxd5 {[%emt 0:01:18]} Qxd5 {[%emt 0:00:06]} 16. Be3 {[%emt 0:00:32]} Bd6 {[%emt 0:01:58]} 17. Kg1 {[%emt 0:02:49]} Rad8 {[%emt 0:07:39]} 18. Nh2 {[%emt 0:04:39]} e4 {[%emt 0:02:56]} 19. f4 {[%emt 0:12:18]} Rfe8 {[%emt 0:15:08]} 20. d4 {[%emt 0:08:08]} Be7 {[%emt 0:04:47]} 21. c3 {[%emt 0:02:43]} Na5 {[%emt 0:07:48]} 22. Qe2 {[%emt 0:03:21]} Qc4 {[%emt 0:08:06]} 23. Rf2 {[%emt 0:06:19]} Bh4 {[%emt 0:01:21]} 24. g3 {[%emt 0:01:44]} Bxg3 {[%emt 0:00:25]} 25. Rg2 {[%emt 0:00:02]} Qxe2 {[%emt 0:00:43]} 26. Rxe2 {[%emt 0:00:02]} Nc4 {[%emt 0:00:22]} 27. Rf1 {[%emt 0:04:05]} f5 {[%emt 0:07:06]} 28. Kg2 {[%emt 0:00:33]} Bh4 {[%emt 0:01:23]} 29. Rg1 {[%emt 0:02:28]} c5 {[%emt 0:01:04]} 30. Rd1 {[%emt 0:03:01]} Re6 {[%emt 0:03:16]} 31. Nf1 {[%emt 0:01:59]} Rg6+ {[%emt 0:02:57]} 32. Kh2 {[%emt 0:00:11]} Rgd6 {[%emt 0:04:02]} 33. Rg2 {[%emt 0:06:09]} Kf7 {[%emt 0:00:32]} 34. Rc1 {[%emt 0:02:44]} cxd4 {[%emt 0:00:39]} 35. Bxd4 {[%emt 0:01:09]} Bf6 {[%emt 0:00:20]} 36. Ne3 {[%emt 0:06:05]} Bxd4 {[%emt 0:03:23]} 37. Nxf5 {[%emt 0:01:03]} Bf6 {[%emt 0:00:09]} 38. Nxd6+ {[%emt 0:02:00]} Rxd6 {[%emt 0:00:34]} 39. Re1 {[%emt 0:01:54]} Nd2 {[%emt 0:00:58]} 40. Ree2 {[%emt 0:02:57]} Nf3+ {[%emt 0:00:20]} 41. Kg3 {[%emt 0:31:56]} Rd3 {[%emt 0:33:25]} 42. Kg4 {[%emt 0:01:34]} g6 {[%emt 0:00:13]} 43. f5 {[%emt 0:00:00]} gxf5+ {[%emt 0:00:00]} 44. Kxf5 {[%emt 0:00:00]} Nh4+ {[%emt 0:00:00]} 45. Kxe4 {[%emt 0:00:00]} Nxg2 {[%emt 0:00:00]} 46. Rxg2 {[%emt 0:00:00]} Rxh3 {[%emt 0:00:00]} 47. Kd5 {[%emt 0:00:00]} h5 {[%emt 0:00:00]} 48. Kc6 {[%emt 0:00:00]} Re3 {[%emt 0:00:00]} 49. a4 {[%emt 0:00:00]} bxa4 {[%emt 0:00:00]} 50. Kb6 {[%emt 0:00:00]} a3 {[%emt 0:00:00]} 51. bxa3 {[%emt 0:00:00]} Rxc3 {[%emt 0:00:00]} 52. Ra2 {[%emt 0:00:00]} Rb3+ {[%emt 0:00:00]} 53. Kxa6 {[%emt 0:00:00]} Bb2 {[%emt 0:00:00]} 54. a4 {[%emt 0:00:00]} h4 {[%emt 0:00:00]} 55. a5 {[%emt 0:00:00]} Rb4 {[%emt 0:00:00]} 56. Ka7 {[%emt 0:00:00]} h3 {[%emt 0:00:00]} 57. a6 {[%emt 0:00:00]} h2 {[%emt 0:00:00]} 58. Ra5 {[%emt 0:00:00]} Bd4+ {[%emt 0:00:00]} 0-1